bitfinex/quotes_SOLUSD_20250210
["timestamp","ask_amount","ask_price","bid_price","bid_amount"]
[1739184549496,108.84109788,203.55,203.54,325.9131101]
[1739184550096,108.84109788,203.55,203.54,13.9131101]
[1739184550489,108.84109788,203.55,203.54,27.57593863]
[1739184551017,7.3871713,203.56,203.55,18.57552853]
[1739184551219,60.94935383,203.59,203.58,33.66282853]
[1739184551391,60.94935383,203.59,203.58,47.57593863]
[1739184551590,46.17501122,203.59,203.58,47.57593863]
[1739184552494,46.17501122,203.59,203.58,27.57593863]
[1739184553601,9.94988094,203.59,203.58,27.57593863]
[1739184553786,8.56177649,203.63,203.62,20.25098]
[1739184553990,8.56177649,203.63,203.62,71.99948951]
[1739184554413,45.32302784,203.7,203.67,20.25098]
[1739184554600,1.0,203.7,203.69,14.0386001]
[1739184554807,1.0,203.7,203.69,0.12549]
[1739184555707,1.0,203.7,203.67,0.12549]
[1739184555917,14.9131101,203.73,203.68,24.16146629]
[1739184555918,1.0,203.73,203.68,24.16146629]
[1739184556112,1.0,203.77,203.71,14.0386001]
[1739184556428,1.0,203.77,203.73,0.25098]
[1739184556917,13.9131101,203.76,203.72,9.86386716]
[1739184557233,13.9131101,203.73,203.72,9.86386716]
[1739184557727,13.9131101,203.73,203.68,0.12549]
[1739184558299,13.9131101,203.74,203.68,0.12549]
[1739184558718,13.9131101,203.73,203.68,0.12549]
[1739184559206,0.15292327,203.72,203.68,0.12549]
[1739184559409,0.15292327,203.72,203.71,0.25098]
[1739184559608,0.15292327,203.72,203.71,13.66282853]
[1739184560009,0.15292327,203.72,203.71,27.57593863]
[1739184560403,0.15292327,203.72,203.71,0.25098]
[1739184560617,0.15292327,203.72,203.69,13.9131101]
[1739184561233,0.15292327,203.72,203.71,0.12549]
[1739184561740,0.15292327,203.72,203.71,32.48483863]
[1739184562233,0.15292327,203.72,203.71,13.66282853]
[1739184562431,0.15292327,203.72,203.71,32.48483863]
[1739184563208,0.15292327,203.72,203.71,14.1640901]
[1739184563531,0.15292327,203.72,203.71,20.25098]
[1739184563720,0.15292327,203.72,203.71,52.48483863]
[1739184564240,0.15292327,203.72,203.71,0.25098]
[1739184565003,0.15292327,203.72,203.68,20.03]
[1739184565212,0.15292327,203.72,203.68,0.28098]
[1739184566833,0.15292327,203.72,203.68,5.19058]
[1739184568229,2.327e-05,203.72,203.71,27.57593863]
[1739184568433,0.063,203.79,203.78,20.25098]
[1739184568636,13.9131101,203.9,203.83,20.0]
[1739184568839,13.9131101,203.9,203.83,20.12549]
[1739184569132,13.9131101,203.9,203.84,0.12549]
[1739184569316,13.9131101,203.88,203.79,13.9131101]
[1739184569521,13.9131101,203.86,203.79,13.9131101]
[1739184570032,13.9131101,203.86,203.8,0.25098]
[1739184570335,13.9131101,203.88,203.8,0.25098]
[1739184571431,13.9131101,203.86,203.77,13.9131101]
[1739184571630,13.9131101,203.78,203.72,12.2716]
[1739184572025,13.9131101,203.78,203.73,0.12549]
[1739184572229,13.9131101,203.8,203.73,0.25098]
[1739184573335,13.9131101,203.82,203.73,14.1640901]
[1739184573526,13.9131101,203.82,203.76,0.12549]
[1739184574133,13.9131101,203.82,203.77,4.9074]
[1739184574424,13.9131101,203.86,203.78,0.25098]
[1739184574925,13.9131101,203.84,203.78,0.25098]
[1739184575731,13.9131101,203.86,203.78,0.25098]
[1739184576341,13.9131101,203.86,203.79,4.907]
[1739184577440,13.9131101,203.88,203.8,0.25098]
[1739184577620,13.9131101,203.9,203.84,0.25098]
[1739184577822,81.0,203.91,203.84,0.25098]
[1739184578136,94.9131101,203.91,203.84,14.1640901]
[1739184579042,0.0001,203.85,203.84,32.48173863]
[1739184582339,0.0001,203.85,203.84,5.15678]
[1739184582544,0.0001,203.85,203.84,4.9058]
[1739184583146,0.0001,203.85,203.84,5.15678]
[1739184585246,2.84113023,203.85,203.84,5.15678]
[1739184586547,3.023e-05,203.85,203.84,32.48173863]
[1739184587633,13.9131101,203.92,203.85,0.12549]
[1739184588750,13.9131101,203.92,203.87,0.12549]
[1739184590846,13.9131101,203.9,203.86,4.9053]
[1739184591952,13.9131101,203.9,203.82,0.25098]
[1739184592928,4.9037,203.93,203.82,0.12549]
[1739184592929,13.9131101,203.88,203.82,0.12549]
[1739184593133,13.9131101,203.87,203.82,0.12549]
[1739184594028,13.9131101,203.87,203.83,4.906]
[1739184595354,81.0,203.92,203.85,0.12549]
[1739184596058,13.9131101,203.91,203.85,0.12549]
[1739184597355,0.063,203.87,203.86,5.03079]
[1739184599858,13.9131101,203.91,203.87,0.25098]
[1739184600038,13.9131101,203.93,203.87,0.25098]
[1739184600858,13.9131101,203.89,203.86,4.9053]
[1739184601358,13.9131101,203.87,203.83,4.906]
[1739184602159,13.9131101,203.87,203.83,0.12549]
[1739184602360,13.9131101,203.88,203.83,0.12549]
[1739184602562,13.9131101,203.89,203.83,0.25098]
[1739184604272,13.9131101,203.92,203.85,13.66282853]
[1739184604474,13.9131101,203.94,203.87,0.25098]
[1739184604970,13.9131101,203.93,203.87,0.12549]
[1739184605541,13.9131101,203.92,203.87,0.12549]
[1739184606156,13.9131101,203.93,203.87,0.12549]
[1739184606356,13.9131101,203.94,203.89,0.12549]
[1739184606551,13.9131101,203.97,203.91,0.12549]
[1739184606751,13.9131101,203.98,203.91,14.1640901]
[1739184607164,13.9131101,203.97,203.91,0.25098]
[1739184608473,13.9131101,203.97,203.92,4.9038]
[1739184608841,13.9131101,203.98,203.92,4.9038]
[1739184609042,13.9131101,203.98,203.93,0.25098]
[1739184609246,13.9131101,204.03,203.97,0.12549]
[1739184609445,13.9131101,204.02,203.97,0.12549]
[1739184609749,13.9131101,204.01,203.97,0.12549]
[1739184610562,13.9131101,204.01,203.98,4.9024]
[1739184611271,13.9131101,204.02,203.98,4.9024]
[1739184613767,85.9635,204.06,203.99,14.1640901]
[1739184613768,13.9761101,204.06,203.99,14.1640901]
[1739184613971,0.063,204.06,204.0,13.9131101]
[1739184614282,13.9131101,204.05,203.98,31.0716101]
[1739184614647,13.9131101,204.04,203.99,0.25098]
[1739184614868,13.9131101,204.04,204.0,4.9019]
[1739184615373,13.9131101,204.05,204.0,4.9019]
[1739184617489,13.9761101,204.06,204.0,4.9019]
[1739184617975,13.9761101,204.06,204.01,0.25098]
[1739184618182,0.063,204.06,204.03,0.12549]
[1739184619363,0.063,204.06,204.04,4.9009]
[1739184621155,0.063,204.08,204.05,0.25098]
[1739184621359,0.063,204.13,204.07,14.1640901]
[1739184621559,0.063,204.13,204.09,0.25098]
[1739184622485,0.063,204.13,204.08,0.12549]
[1739184623285,0.063,204.13,204.1,0.12549]
[1739184624268,0.063,204.13,204.1,0.25098]
[1739184624473,0.063,204.13,204.12,0.25098]
[1739184624660,0.063,204.13,204.12,14.1640901]
[1739184625180,0.0001,204.13,204.12,34.07053863]
[1739184625479,0.0001,204.13,204.12,38.96953863]
[1739184628879,2.31e-05,204.22,204.16,0.25098]
[1739184629789,13.9131332,204.22,204.17,0.25098]
[1739184629991,2.31e-05,204.22,204.18,13.9131101]
[1739184630173,2.31e-05,204.22,204.16,13.9131101]
[1739184630383,13.9131332,204.22,204.15,13.9131101]
[1739184630991,13.9131101,204.2,204.17,4.8978]
[1739184631688,2.31e-05,204.22,204.17,4.8978]
[1739184631689,8.64708287,204.21,204.17,4.8978]
[1739184632057,8.64708287,204.18,204.12,18.7422]
[1739184632260,8.64708287,204.17,204.12,12.2476]
[1739184632683,8.64708287,204.17,204.13,0.25098]
[1739184632984,8.64708287,204.18,204.13,0.25098]
[1739184633158,8.64708287,204.17,204.11,4.8993]
[1739184633364,8.64708287,204.16,204.11,4.8993]
[1739184633585,13.84108224,204.16,204.11,4.8993]
[1739184634463,13.84108224,204.16,204.13,0.03]
[1739184634687,13.84108224,204.15,204.13,0.03]
[1739184634881,13.84108224,204.14,204.13,0.03]
[1739184636176,13.84108224,204.15,204.13,0.03]
[1739184636489,13.84108224,204.17,204.13,0.03]
[1739184637688,13.84108224,204.15,204.13,0.03]
[1739184639290,13.84108224,204.14,204.13,0.03]
[1739184642389,13.84108224,204.15,204.13,0.03]
[1739184642987,13.84108224,204.16,204.13,0.03]
[1739184643189,13.84108224,204.15,204.13,0.03]
[1739184647479,18.73948224,204.15,204.13,0.03]
[1739184647683,13.84108224,204.14,204.13,0.03]
[1739184650482,94.84108224,204.14,204.13,0.03]
[1739184652381,99.73958224,204.14,204.13,0.03]
[1739184652575,114.07016888,204.14,204.13,0.03]
[1739184652780,113.15143077,204.14,204.13,0.03]
[1739184653598,107.96589066,204.14,204.13,0.03]
[1739184653794,89.65554213,204.14,204.13,0.03]
[1739184655699,81.0,204.14,204.13,0.03]
[1739184656586,8.65554213,204.14,204.13,0.03]
[1739184658699,13.55404213,204.14,204.13,0.03]
[1739184659216,14.47276571,204.14,204.13,0.03]
[1739184660004,9.57426571,204.14,204.13,0.03]
[1739184660196,8.65554213,204.14,204.13,0.03]
[1739184660587,13.55404213,204.14,204.13,0.03]
[1739184660783,27.88460717,204.14,204.13,0.03]
[1739184660988,28.88460717,204.14,204.13,0.03]
[1739184664011,30.01009717,204.14,204.13,0.03]
[1739184664993,29.01009717,204.14,204.13,0.03]
[1739184666889,30.01009717,204.14,204.13,0.03]
[1739184668093,29.01009717,204.14,204.13,0.03]
[1739184668495,9.57425864,204.14,204.13,0.03]
[1739184668803,8.65554213,204.14,204.13,0.03]
[1739184669707,13.55404213,204.14,204.13,0.03]
[1739184672315,8.65554213,204.14,204.13,0.03]
[1739184675700,5.53761253,204.14,204.13,0.03]
[1739184683029,10.43611253,204.14,204.13,0.03]
[1739184683213,23.84796106,204.14,204.13,0.03]
[1739184683529,20.0,204.11,204.01,1.5155]
[1739184683831,5.53761253,204.05,204.01,1.5155]
[1739184684209,5.53761253,204.04,204.01,1.5155]
[1739184684413,5.53761253,204.03,204.0,4.9017]
[1739184684828,5.53761253,204.03,203.99,4.9022]
[1739184685029,5.53761253,204.02,203.97,10.9198]
[1739184685213,0.91897503,204.07,203.97,6.0174]
[1739184685214,5.53761253,204.01,203.97,6.0174]
[1739184685416,5.53761253,204.0,203.97,6.0174]
[1739184685620,5.53761253,203.99,203.97,6.0174]
[1739184687626,8.66480891,203.99,203.97,6.0174]
[1739184688133,8.66480891,203.99,203.97,10.92]
[1739184688818,8.66480891,203.98,203.93,4.9034]
[1739184689135,8.66480891,203.96,203.92,4.9338]
[1739184689343,8.66480891,203.95,203.92,0.03]
[1739184689531,81.0,204.01,203.92,0.03]
[1739184689532,8.66480891,203.94,203.92,0.03]
[1739184689724,8.66480891,203.95,203.92,0.03]
[1739184690431,28.66480891,203.98,203.92,0.03]
[1739184691837,28.66480891,203.98,203.92,4.9338]
[1739184692134,8.66480891,203.98,203.92,4.9338]
[1739184692727,8.66480891,203.97,203.92,4.9338]
[1739184694414,8.66480891,203.95,203.92,4.9338]
[1739184695922,8.66480891,203.96,203.92,4.9338]
[1739184696118,8.66480891,203.96,203.92,0.03]
[1739184696520,28.66480891,203.97,203.92,0.03]
[1739184697138,20.0,203.97,203.92,0.15549]
[1739184697441,8.66480891,203.98,203.92,0.15549]
[1739184698447,8.66480891,203.98,203.93,4.9036]
[1739184698744,8.66480891,203.99,203.93,4.9036]
[1739184698922,8.66480891,203.99,203.93,17.1627]
[1739184700742,8.66480891,204.02,203.95,17.161]
[1739184702124,8.66480891,204.02,203.97,4.9026]
[1739184702442,8.66480891,204.03,203.97,4.9026]
[1739184702740,81.0,204.04,204.0,0.12549]
[1739184704849,81.0,204.04,204.01,4.9017]
[1739184706863,8.66480891,204.05,204.01,4.9017]
[1739184707061,28.66480891,204.06,204.01,4.9017]
[1739184708261,8.66480891,204.05,204.01,4.9017]
[1739184708445,8.66480891,204.04,204.01,4.9017]
[1739184709381,8.66480891,204.05,204.01,4.9017]
[1739184709570,28.66480891,204.06,204.01,4.9017]
[1739184709738,25.54234327,204.06,204.01,4.9017]
[1739184710933,20.0,204.06,204.01,4.9017]
[1739184712549,5.54234327,204.08,204.01,22.69834327]
[1739184712749,81.0,204.09,204.02,5.66783327]
[1739184713335,86.54234327,204.09,204.02,5.66783327]
[1739184714171,5.54234327,204.08,204.02,0.12549]
[1739184714739,5.54234327,204.08,204.03,4.9012]
[1739184715248,86.54234327,204.09,204.04,0.12549]
[1739184715466,81.0,204.09,204.07,0.12549]
[1739184715666,0.063,204.13,204.08,5.54234327]
[1739184716535,0.063,204.13,204.07,10.56803327]
[1739184717142,0.063,204.13,204.07,22.81863327]
[1739184717346,0.063,204.13,204.08,0.12549]
[1739184718062,0.063,204.13,204.09,0.12549]
[1739184718437,0.063,204.13,204.1,4.8995]
[1739184718640,0.063,204.13,204.11,0.12549]
[1739184719780,0.063,204.13,204.11,5.79332327]
[1739184720374,0.063,204.13,204.11,0.25098]
[1739184720756,0.063,204.13,204.12,5.02449]
[1739184721681,5.60534327,204.13,204.1,11.4952]
[1739184722578,0.063,204.13,204.1,11.4952]
[1739184722781,0.063,204.13,204.11,0.12549]
[1739184722987,0.063,204.13,204.11,5.79332327]
[1739184724285,0.063,204.13,204.12,10.56683327]
[1739184724495,0.0001,204.13,204.12,24.1041718]
[1739184725581,0.0001,204.13,204.12,27.207657]
[1739184725968,0.0001,204.13,204.12,5.14998]
[1739184726661,0.0001,204.13,204.12,27.207657]
[1739184727172,0.0001,204.15,204.14,20.25098]
[1739184727372,0.0001,204.15,204.14,22.308657]
[1739184727572,0.0001,204.15,204.14,42.308657]
[1739184727782,2.31e-05,204.22,204.15,13.66282853]
[1739184728080,2.31e-05,204.22,204.21,8.89680847]
[1739184728284,2.31e-05,204.22,204.21,22.308657]
[1739184728486,0.063,204.26,204.23,0.12549]
[1739184728691,0.063,204.26,204.22,13.53733853]
[1739184728692,0.063,204.26,204.25,8.89680847]
[1739184729297,0.063,204.26,204.25,22.308657]
[1739184729859,0.063,204.33,204.32,20.25098]
[1739184730089,0.063,204.33,204.32,8.89680847]
[1739184730469,0.063,204.33,204.32,13.79100847]
[1739184730787,0.063,204.33,204.3,8.64582847]
[1739184730990,0.063,204.33,204.29,8.64582847]
[1739184731198,0.063,204.33,204.28,13.54082847]
[1739184731364,0.063,204.33,204.29,0.25098]
[1739184731569,0.063,204.33,204.29,8.89680847]
[1739184733264,0.063,204.33,204.29,0.25098]
[1739184733886,8.64582847,204.31,204.26,6.4998]
[1739184734105,8.64582847,204.31,204.24,8.64582847]
[1739184734271,8.64582847,204.31,204.25,0.25098]
[1739184734892,8.64582847,204.31,204.24,8.64582847]
[1739184734893,28.70882847,204.33,204.27,0.25098]
[1739184735068,0.063,204.33,204.27,8.89680847]
[1739184735274,0.063,204.33,204.29,0.12549]
[1739184735473,0.063,204.33,204.28,0.25098]
[1739184735777,8.64582847,204.32,204.24,13.54172847]
[1739184735972,8.64582847,204.31,204.25,0.25098]
[1739184736186,8.64582847,204.3,204.25,0.25098]
[1739184736774,13.54092847,204.29,204.22,4.8965]
[1739184737480,8.64582847,204.29,204.23,0.25098]
[1739184738383,8.64582847,204.3,204.23,8.89680847]
[1739184738992,85.957,204.33,204.25,8.89680847]
[1739184738993,8.64582847,204.32,204.25,8.89680847]
[1739184739425,81.063,204.33,204.28,8.77131847]
[1739184739566,81.063,204.33,204.28,0.12549]
[1739184739894,89.70882847,204.33,204.28,0.12549]
[1739184740066,89.70882847,204.33,204.27,0.25098]
[1739184740573,81.063,204.33,204.27,8.77131847]
[1739184740973,81.063,204.33,204.29,4.895]
[1739184741389,81.063,204.33,204.3,0.12549]
[1739184742283,81.063,204.33,204.28,13.66651847]
[1739184743094,81.063,204.33,204.29,0.12549]
[1739184744405,81.063,204.33,204.29,8.77131847]
[1739184744698,81.063,204.33,204.3,8.64582847]
[1739184744900,81.063,204.33,204.29,8.77131847]
[1739184745480,81.063,204.33,204.3,4.8947]
[1739184746803,81.063,204.33,204.31,0.12549]
[1739184746804,0.063,204.33,204.31,0.12549]
[1739184747794,0.063,204.33,204.3,4.8947]
[1739184749416,0.063,204.33,204.29,5.02049]
[1739184749784,0.063,204.33,204.29,0.12549]
[1739184749982,8.70882847,204.33,204.29,0.12549]
[1739184750401,8.64582847,204.32,204.27,4.8952]
[1739184750603,8.70882847,204.33,204.27,4.8952]
[1739184750803,8.64582847,204.31,204.26,0.03]
[1739184750985,89.70882847,204.33,204.26,13.57142847]
[1739184751306,81.063,204.33,204.27,0.25098]
[1739184751610,89.70882847,204.33,204.27,0.25098]
[1739184751811,89.70882847,204.33,204.28,4.8952]
[1739184752909,81.063,204.33,204.26,0.03]
[1739184753133,8.64582847,204.31,204.26,4.9257]
[1739184753909,8.64582847,204.32,204.26,4.9257]
[1739184754092,81.063,204.33,204.26,13.57152847]
[1739184754407,89.70882847,204.33,204.26,13.57152847]
[1739184754611,8.64582847,204.32,204.26,4.9257]
[1739184756596,89.70882847,204.33,204.26,8.67582847]
[1739184756795,81.063,204.33,204.27,8.64582847]
[1739184757494,81.063,204.33,204.28,8.89680847]
[1739184757697,81.063,204.33,204.3,0.12549]
[1739184758594,81.063,204.33,204.31,4.8945]
[1739184758893,0.063,204.33,204.31,4.8945]
[1739184760595,0.063,204.33,204.32,5.65160776]
[1739184762112,0.063,204.33,204.32,10.67129776]
[1739184765923,0.063,204.33,204.32,10.42031776]
[1739184766222,0.063,204.33,204.32,4.8942]
[1739184766520,0.063,204.33,204.31,4.8945]
[1739184766821,0.063,204.33,204.31,10.42061776]
[1739184767204,0.063,204.33,204.32,5.65160776]
[1739184768526,0.063,204.33,204.32,10.54580776]
[1739184769106,0.063,204.33,204.32,5.01969]
[1739184771021,0.063,204.33,204.32,4.8942]
[1739184772321,0.063,204.33,204.32,10.42031776]
[1739184774115,0.026,204.34,204.32,10.42031776]
[1739184776706,0.063,204.33,204.32,10.42031776]
[1739184776912,0.063,204.33,204.32,4.8942]
[1739184778211,0.063,204.33,204.31,5.01999]
[1739184780345,0.063,204.33,204.3,0.03]
[1739184780512,81.98075695,204.33,204.3,0.03]
[1739184782930,81.063,204.33,204.3,0.03]
[1739184788213,5.52611776,204.31,204.3,0.03]
[1739184788626,18.93796629,204.31,204.3,0.03]
[1739184789919,23.83246629,204.31,204.3,0.03]
[1739184790710,18.93796629,204.31,204.3,0.03]
[1739184791825,23.83246629,204.31,204.3,0.03]
[1739184792333,18.93796629,204.31,204.3,0.03]
[1739184797023,24.83246629,204.31,204.3,0.03]
[1739184797737,20.0,204.27,204.26,0.03]
[1739184797950,39.85632813,204.27,204.26,0.03]
[1739184804156,26.4444796,204.27,204.26,0.03]
[1739184804328,6.4444796,204.27,204.26,0.03]
[1739184804530,5.52611776,204.27,204.26,0.03]
[1739184804730,6.44426454,204.29,204.26,0.03]
[1739184806448,87.44426454,204.29,204.26,0.03]
[1739184807969,5.52611776,204.27,204.26,0.03]
[1739184809661,20.0,204.27,204.26,0.03]
[1739184809837,86.52611776,204.29,204.26,0.03]
[1739184810232,81.0,204.29,204.26,0.03]
[1739184810550,5.52611776,204.28,204.26,0.03]
[1739184811131,81.0,204.29,204.26,0.03]
[1739184812358,81.0,204.29,204.26,4.9257]
[1739184813747,0.063,204.31,204.26,10.45181776]
[1739184814147,0.063,204.31,204.27,5.52611776]
[1739184816239,0.063,204.31,204.28,4.8952]
[1739184816939,0.063,204.31,204.29,5.52611776]
[1739184817335,0.063,204.31,204.28,18.45831776]
[1739184818264,0.063,204.31,204.28,12.9322]
[1739184820060,0.063,204.31,204.28,4.8952]
[1739184820557,0.063,204.31,204.26,10.45181776]
[1739184820756,0.063,204.31,204.27,5.52611776]
[1739184821161,0.063,204.31,204.28,5.52611776]
[1739184822764,0.063,204.31,204.29,4.895]
[1739184826271,0.063,204.31,204.29,10.42111776]
[1739184826670,0.063,204.31,204.29,4.895]
[1739184829486,0.063,204.31,204.27,5.52611776]
[1739184829653,0.063,204.31,204.28,4.8952]
[1739184830378,0.063,204.31,204.26,4.9256]
[1739184830379,5.52611776,204.3,204.26,4.9256]
[1739184830672,5.52611776,204.3,204.26,0.03]
[1739184834078,0.063,204.31,204.26,0.03]
[1739184834568,81.0,204.3,204.26,0.03]
[1739184834968,81.0,204.3,204.26,4.9257]
[1739184838674,81.0,204.3,204.26,10.45181776]
[1739184839978,81.0,204.3,204.26,22.69111776]
[1739184840365,81.0,204.3,204.28,5.52611776]
[1739184840678,0.063,204.31,204.28,5.52611776]
[1739184841682,0.063,204.31,204.26,12.2693]
[1739184841683,0.063,204.31,204.29,4.895]
[1739184841984,0.063,204.31,204.27,4.8953]
[1739184843170,0.063,204.31,204.26,4.9257]
[1739184845196,0.91799039,204.3,204.26,0.03]
[1739184845593,6.44410815,204.3,204.26,0.03]
[1739184846262,0.91799039,204.3,204.26,0.03]
[1739184846462,81.0,204.29,204.26,0.03]
[1739184851790,81.0,204.29,204.27,5.52611776]
[1739184852090,81.0,204.29,204.28,5.52611776]
[1739184852387,20.0,204.27,204.26,0.03]
[1739184852592,25.52611776,204.27,204.26,0.03]
[1739184853763,30.42151776,204.27,204.26,0.03]
[1739184853963,44.75163795,204.27,204.26,0.03]
[1739184855688,31.33978942,204.27,204.26,0.03]
[1739184856077,44.75163795,204.27,204.26,0.03]
[1739184857490,67.85610899,204.27,204.15,35.49090339]
[1739184857795,5.52611776,204.2,204.14,4.8985]
[1739184859286,5.52611776,204.21,204.14,4.8985]
[1739184859600,0.9184555,204.22,204.15,5.52611776]
[1739184859895,0.9184555,204.22,204.16,4.8981]
[1739184860094,81.0,204.23,204.17,5.52611776]
[1739184860787,81.0,204.23,204.18,5.52611776]
[1739184861007,81.0,204.23,204.2,5.52611776]
[1739184861202,0.063,204.27,204.21,5.52611776]
[1739184861415,20.0,204.25,204.2,5.52611776]
[1739184861709,20.0,204.25,204.19,5.52611776]
[1739184861872,20.0,204.25,204.2,4.8971]
[1739184863370,0.063,204.27,204.21,5.52611776]
[1739184863591,0.063,204.27,204.24,5.52611776]
[1739184863792,0.063,204.27,204.25,4.8959]
[1739184864106,0.063,204.27,204.25,10.42201776]
[1739184864402,0.063,204.27,204.26,5.52611776]
[1739184865409,0.063,204.27,204.26,10.42181776]
[1739184869795,0.063,204.27,204.26,10.54730776]
[1739184872690,0.063,204.27,204.26,10.57730776]
[1739184873906,0.063,204.27,204.26,10.70279776]
[1739184874483,0.0001,204.27,204.26,10.70279776]
[1739184875910,0.0001,204.27,204.26,24.11464629]
[1739184876213,0.0001,204.27,204.26,46.21911733]
[1739184876420,0.0001,204.27,204.26,24.11464629]
[1739184876704,0.0001,204.27,204.26,46.21911733]
[1739184876896,0.0001,204.27,204.26,24.11464629]
[1739184877606,0.0001,204.27,204.26,10.70279776]
[1739184878108,0.0001,204.27,204.26,10.57730776]
[1739184882705,0.0001,204.27,204.26,10.70279776]
[1739184887116,0.0001,204.27,204.26,10.57730776]
[1739184887415,0.0001,204.27,204.26,4.9257]
[1739184888410,0.0001,204.27,204.26,10.45181776]
[1739184888714,0.0001,204.27,204.26,10.57730776]
[1739184889531,0.0001,204.27,204.26,10.45181776]
[1739184904834,0.0001,204.27,204.26,4.9257]
[1739184906421,5.52621776,204.27,204.26,0.03]
[1739184906602,7.12321776,204.27,204.26,0.03]
[1739184906807,43.63953733,204.27,204.26,0.03]
[1739184907207,24.42564326,204.27,204.26,0.03]
[1739184909128,29.44653326,204.27,204.26,0.03]
[1739184910428,30.36488857,204.27,204.26,0.03]
[1739184913530,10.93215004,204.27,204.26,0.03]
[1739184913918,29.23939857,204.27,204.26,0.03]
[1739184914116,24.34399857,204.27,204.26,0.03]
[1739184914924,29.23939857,204.27,204.26,0.03]
[1739184916832,51.34386961,204.27,204.26,0.03]
[1739184917035,1.0,204.22,204.11,5.55611776]
[1739184917341,5.52611776,204.18,204.11,0.03]
[1739184917524,0.91860909,204.21,204.12,5.52611776]
[1739184917525,0.91857702,204.17,204.12,5.52611776]
[1739184918934,0.91857702,204.17,204.12,10.42501776]
[1739184920128,20.91857702,204.17,204.12,10.42501776]
[1739184921638,0.91857702,204.17,204.12,10.42501776]
[1739184923120,0.91857702,204.17,204.11,4.9292]
[1739184923853,0.91857702,204.17,204.12,5.52611776]
[1739184924027,81.91862979,204.18,204.12,5.52611776]
[1739184925125,81.91862979,204.18,204.13,4.8988]
[1739184926435,81.0,204.18,204.14,5.52611776]
[1739184926833,81.0,204.19,204.14,5.52611776]
[1739184927033,81.0,204.19,204.14,10.42441776]
[1739184929142,81.91843911,204.19,204.14,10.42441776]
[1739184929344,81.91843911,204.19,204.12,10.42511776]
[1739184931142,86.81593911,204.19,204.12,10.42511776]
[1739184931640,81.91843911,204.19,204.12,10.42511776]
[1739184931947,81.0,204.19,204.15,5.52611776]
[1739184932639,81.0,204.18,204.15,5.52611776]
[1739184932844,81.0,204.18,204.17,5.52611776]
[1739184933342,81.0,204.24,204.17,10.42391776]
[1739184933520,81.0,204.23,204.21,5.52611776]
[1739184933942,0.0001,204.27,204.22,5.52611776]
[1739184934146,0.0001,204.27,204.23,5.52611776]
[1739184934338,0.0001,204.27,204.24,5.52611776]
[1739184934645,0.0001,204.27,204.26,5.52611776]
[1739184935224,0.0001,204.27,204.26,10.42181776]
[1739184937030,0.0001,204.27,204.26,17.01961776]
[1739184938643,0.0001,204.27,204.26,17.14510776]
[1739184939027,0.0001,204.27,204.26,52.78691733]
[1739184939348,0.0001,204.27,204.26,30.68244629]
[1739184941352,0.0001,204.27,204.26,17.14510776]
[1739184942151,0.0001,204.27,204.26,30.68244629]
[1739184944543,0.063,204.31,204.28,0.12549]
[1739184944743,0.063,204.31,204.3,5.52611776]
[1739184947245,0.063,204.31,204.3,10.42081776]
[1739184947548,0.063,204.4,204.34,0.12549]
[1739184947849,0.063,204.4,204.35,5.65160776]
[1739184949152,0.0001,204.36,204.35,24.08244629]
[1739184949346,0.0001,204.36,204.35,30.25874629]
[1739184950348,0.063,204.4,204.35,30.25874629]
[1739184950349,0.063,204.4,204.36,13.66282853]
[1739184950552,0.063,204.48,204.4,13.66282853]
[1739184950744,0.063,204.48,204.46,5.52611776]
[1739184950942,0.063,204.48,204.45,5.52611776]
[1739184951146,0.063,204.48,204.44,5.52611776]
[1739184953153,0.063,204.48,204.42,5.52611776]
[1739184953332,6.50638231,204.48,204.41,5.52611776]
[1739184953532,0.98026455,204.48,204.41,5.52611776]